Cogmind - Beta 12 @@@ ROGUE MODE // 2023.11.19 @ 12:05:53 Player: epb Result: Self-destructed Performance ------------- Evolutions (2) 1000 Regions Visited (4) 800 Robots Destroyed (39) 195 Value Destroyed (1043) 1043 Prototype IDs (3) 60 Alien Tech Used (0) 0 Bonus (75) 75 TOTAL SCORE: 3173 Bonus ------- High Alert Combat Kills 25 Follower Combat Kills 50 Cogmind --------- Core Integrity 167/550 Matter 166/300 Energy 52/125 System Corruption 6% Temperature Warning (319) Movement Core (50) Location -8/Materials Parts ------- > --- POWER (2) -------- Light Ion Engine > --- PROPULSION (4) --- (None) > --- UTILITY (3) ------ (None) > --- WEAPON (2) ------- (None) > --- INVENTORY (5) ---- Improved Heat Sink EM Pulse Cannon Peak State ------------ > --- POWER ------------ Light Angular Momentum Engine > --- PROPULSION ------- Carbon-fiber Leg Titanium Leg > --- UTILITY ---------- Small Storage Unit Experimental Sensor Array > --- WEAPON ----------- EM Pulse Cannon Assault Rifle > --- INVENTORY -------- Light Ion Engine Light Ion Engine Aluminum Leg Improved Heat Sink Improved Terrain Scanner Improved Trap Extractor EM Pulse Cannon Grenade Launcher [Rating: 26] Favorites ----------- Power Light Ion Engine Engine Light Ion Engine Power Core Light Nuclear Core Propulsion Aluminum Leg Leg Aluminum Leg Utility Small Storage Unit Device Improved Terrain Scanner Storage Small Storage Unit Processor Machine Analyzer Weapon Assault Rifle Energy Gun Improved Medium Laser Energy Cannon EM Pulse Cannon Ballistic Gun Assault Rifle Ballistic Cannon Assault Cannon Launcher Grenade Launcher Impact Weapon Mace Build | -11 -10 -10 -9 -8 ------- Run | Jun Mat Min Mat Mat Slots Evolved 4 | . . . 2 2 Power 1 | . . . 1 . Propulsion 2 | . . . . 2 Utility 1 | . . . 1 . Weapon . | . . . . . Parts Attached 53 | 6 10 13 8 16 Power 14 | 1 2 2 3 6 Engine 11 | 1 1 1 3 5 Core 3 | . 1 1 . 1 Reactor . | . . . . . Propulsion 9 | 2 2 4 . 1 Treads . | . . . . . Leg 9 | 2 2 4 . 1 Wheel . | . . . . . Hover . | . . . . . Flight . | . . . . . Utility 9 | 1 1 3 . 4 Device 6 | . . 3 . 3 Storage 1 | 1 . . . . Processor 2 | . 1 . . 1 Hackware . | . . . . . Protection . | . . . . . Artifact . | . . . . . Weapon 21 | 2 5 4 5 5 Energy Gun 2 | . . . 1 1 Energy Cannon 4 | . . 1 1 2 Ballistic Gun 11 | 2 5 3 1 . Ballistic Cannon 1 | . . . . 1 Launcher 2 | . . . 1 1 Special Weapon . | . . . . . Impact Weapon 1 | . . . 1 . Slashing Weapon . | . . . . . Piercing Weapon . | . . . . . Special Melee Weapon . | . . . . . Unidentified Prototypes 3 | . . 1 1 1 Parts Lost 21 | . . 1 6 14 Power 6 | . . . 2 4 Propulsion 3 | . . . . 3 Utility 4 | . . . 1 3 Weapon 8 | . . 1 3 4 Highest Loss Streak 13 | . . 1 2 13 To Critical Strikes . | . . . . . Average Slot Usage (%) 83 | . 88 97 72 76 Engine 10 | . 10 . 17 14 Core 4 | . 2 13 . 2 Leg 24 | . 28 27 22 17 Device 5 | . . 11 2 8 Storage 12 | . 14 14 11 8 Processor 2 | . 5 1 . 8 Energy Gun 1 | . . . 2 3 Energy Cannon 6 | . . 11 6 3 Ballistic Gun 9 | . 26 15 1 . Impact Weapon 3 | . . . 7 4 Naked Turns . | . . . . . Heaviest Build 27 | 12 14 23 25 27 Greatest Support 42 | 20 20 32 32 42 Greatest Overweight (x) 8 | . . 3 . 8 Average Overweight (x) . | . . . . . Largest Inventory Capacity 8 | 8 8 8 8 8 Average Capacity 7 | 7 8 8 8 7 Most Carried 8 | 2 6 8 8 8 Average Carried 6 | . 3 7 7 6 Final Capacity 8 | 8 8 8 8 5 Final Carried 8 | 2 6 8 7 2 Class Distribution -------------------- 100% | Mutant Dominant Class ---------------- Mutant | -10/Materials Mutant | -10/Mines Mutant | -9/Materials Mutant | -8/Materials Resources | -11 -10 -10 -9 -8 ----------- Run | Jun Mat Min Mat Mat Matter Collected 765 | 236 70 269 130 60 Remotely . | . . . . . Salvage Created 963 | . 138 193 386 246 Parts 56 | . 6 7 29 14 Haulers Intercepted 1 | . . . 1 . Recyclers Shooed . | . . . . . Parts Field Recycled . | . . . . . Retrieved Matter . | . . . . . Parts Self-Destructed . | . . . . . Prevented . | . . . . . Kills | -11 -10 -10 -9 -8 ------- Run | Jun Mat Min Mat Mat Combat Hostiles Destroyed 36 | . 5 4 21 6 Guns 7 | . 5 . 2 . Cannons 10 | . . 4 1 5 AOE 16 | . . . 15 1 Classes Destroyed 5 | . 2 . 3 . Hauler 1 | . . . 1 . Watcher 2 | . . . 1 1 Swarmer 17 | . 3 . 14 . Grunt 15 | . 2 4 4 5 Sentry 4 | . . . 3 1 Best Kill Streak 13 | . 3 1 13 5 Combat Bots Only 13 | . 3 1 13 5 Max Kills in Single Turn 6 | . 1 1 6 1 Gunslinging . | . . . . . Exploded 6 | . . . 6 1 Melee . | . . . . . Uniques/NPCs Destroyed . | . . . . . Combat | -11 -10 -10 -9 -8 -------- Run | Jun Mat Min Mat Mat Damage Taken 2569 | . 229 247 677 1416 Core 567 | . 52 15 117 383 Absorbed by Shields . | . . . . . Core Remaining (%) 81 | 100 . 73 70 . Volleys Fired 80 | . 12 14 34 20 Largest 2 | . 2 2 2 2 Hottest 112 | . 40 83 83 112 Shots Fired 106 | . 18 26 37 25 Gun 46 | . 18 12 16 . Cannon 51 | . . 14 13 24 Launcher 9 | . . . 8 1 Special . | . . . . . Kinetic 51 | . 18 12 3 18 Thermal 19 | . . . 13 6 Explosive 8 | . . . 8 . Electromagnetic 28 | . . 14 13 1 Robot Hit Streak 8 | . 6 7 8 8 Robot Miss Streak 2 | . 2 2 2 2 Penetration Max . | . . . . . Secondary Targets . | . . . . . Shots Hit Robots 82 | . 12 18 33 19 Core Hits 57 | . 8 7 30 12 Critical Kills . | . . . . . Critical Parts Destroyed 2 | . . . 2 . Critical Strikes 2 | . . . 2 . Smash 2 | . . . 2 . Melee Attacks 15 | . . . 14 1 Impact 15 | . . . 14 1 Slashing . | . . . . . Piercing . | . . . . . Sneak Attacks 1 | . . . 1 . Combat Hostiles . | . . . . . Follow-up Attacks . | . . . . . Damage Inflicted 2706 | . 160 417 1565 564 Guns 417 | . 160 74 183 . Cannons 1011 | . . 343 212 456 Explosions 870 | . . . 782 88 Melee 408 | . . . 388 20 Ramming . | . . . . . Kinetic 641 | . 160 74 14 393 Thermal 270 | . . . 207 63 Explosive 744 | . . . 744 . Electromagnetic 643 | . . 343 212 88 Impact 408 | . . . 388 20 Slashing . | . . . . . Piercing . | . . . . . Highest Corruption 6 | . . . . 6 Average Corruption 5 | . . . . 5 Corruption Purged . | . . . . . Corruption Blocked . | . . . . . Overload Shots . | . . . . . Overflow Damage 168 | . . 27 141 . Projectiles 35 | . . 27 8 . Explosions 10 | . . . 10 . Melee 123 | . . . 123 . Knockbacks 6 | . . . 1 5 Impact 1 | . . . 1 . Kinetic 5 | . . . . 5 Secondary . | . . . . . Self-Inflicted Damage 47 | . . . 35 12 Shots 3 | . . . 2 1 Rammed . | . . . . . Targets Rammed . | . . . . . Kicked . | . . . . . Crushed . | . . . . . Highest Temperature 406 | . . 199 210 406 Average Temperature 89 | . . 86 70 120 Received Heat Transfer 1239 | . 72 126 267 774 Effects 3 | . . . . 3 Shutdowns 1 | . . . . 1 Energy Bleed 2 | . . . . 2 Siege Activations . | . . . . . Robots Corrupted 1 | . . . 1 . Combat Hostiles 1 | . . . 1 . Parts Fried 7 | . . 2 5 . Impact Corruptions 4 | . . . 4 . Robots Melted . | . . . . . Combat Hostiles . | . . . . . Parts Melted 2 | . . . 2 . Heat Transferred 531 | . . . 420 111 Parts Sabotaged . | . . . . . Parts Stolen . | . . . . . Parts Stripped . | . . . . . Power Chain Reactions 1 | . . . 1 . Missiles Intercepted . | . . . . . Alert | -11 -10 -10 -9 -8 ------- Run | Jun Mat Min Mat Mat Peak Influence 462 | . 194 160 462 213 Initial 170 | . . 75 13 170 Average 175 | . 88 76 307 187 Maximum Alert Level 2 | . . . 2 1 Low Security (%) 66 | 100 100 100 23 59 Level 1 18 | . . . 33 40 Level 2 15 | . . . 42 . Level 3 . | . . . . . Level 4 . | . . . . . Level 5 . | . . . . . High Security . | . . . . . Max Security . | . . . . . Squads Dispatched 1 | . . . 1 . Investigation 1 | . . . 1 . Extermination . | . . . . . Reinforcement . | . . . . . Assault . | . . . . . Garrison . | . . . . . Intercept . | . . . . . Searches Triggered . | . . . . . Construction Impeded . | . . . . . Haulers Reinforced . | . . . . . Active Scanning Responses . | . . . . . Cargo Convoy Interrupts . | . . . . . Stealth | -11 -10 -10 -9 -8 --------- Run | Jun Mat Min Mat Mat Distress Signals 3 | . . . . 3 Communications Jammed . | . . . . . Distress Signals . | . . . . . Times Spotted 50 | . 10 5 23 12 Peak Tracking Total 15 | . 5 2 15 10 Tactical Retreats 3 | . 1 1 1 . Traps | -11 -10 -10 -9 -8 ------- Run | Jun Mat Min Mat Mat Traps Triggered 9 | . 5 4 . . Indirectly . | . . . . . Trap Hack Attempts . | . . . . . Triggered . | . . . . . Disarmed . | . . . . . Reprogrammed . | . . . . . Reused . | . . . . . Traps Extracted . | . . . . . Installed . | . . . . . Triggered . | . . . . . Machines | -11 -10 -10 -9 -8 ---------- Run | Jun Mat Min Mat Mat Machines Disabled 1 | . . . 1 . Max in Single Turn 1 | . . . 1 . Machines Repaired . | . . . . . Machines Sabotaged . | . . . . . Overloaded Fab Kills . | . . . . . Hacking | -11 -10 -10 -9 -8 --------- Run | Jun Mat Min Mat Mat Machines Accessed 6 | . 2 1 2 1 Terminals 4 | . 2 . 1 1 Fabricators . | . . . . . Repair Stations . | . . . . . Recycling Units 1 | . . . 1 . Scanalyzers . | . . . . . Garrison Access . | . . . . . Total Hacks 10 | . 2 1 3 4 Successful 6 | . 2 1 1 2 Failed 4 | . . . 2 2 Catastrophic . | . . . . . Database Lockouts . | . . . . . Manual . | . . . . . Terminals 8 | . 2 . 2 4 Fabricators . | . . . . . Repair Stations . | . . . . . Recycling Units 1 | . . . 1 . Scanalyzers . | . . . . . Garrison Access . | . . . . . Terminal Hacks 5 | . 2 1 . 2 Open Door 1 | . . 1 . . Locate Traps 1 | . 1 . . . Hauler Manifests 1 | . . . . 1 Zone Layout 2 | . 1 . . 1 Fabricator Hacks . | . . . . . Repair Station Hacks . | . . . . . Recycling Unit Hacks 1 | . . . 1 . Retrieve Components 1 | . . . 1 . Scanalyzer . | . . . . . Garrison Access Hacks . | . . . . . Unauthorized Hacks . | . . . . . Terminals . | . . . . . Fabricators . | . . . . . Repair Stations . | . . . . . Recycling Units . | . . . . . Scanalyzers . | . . . . . Garrison Access . | . . . . . Data Cores Recovered . | . . . . . Used . | . . . . . Hacking Detections 3 | . 1 . 1 1 Full Trace Events 1 | . . . 1 . Feedback Events . | . . . . . Feedback Blocked . | . . . . . Robot Schematics Acquired . | . . . . . Robots Built . | . . . . . Authchips . | . . . . . Time . | . . . . . Total Robot Build Rating . | . . . . . Part Schematics Acquired . | . . . . . Parts Built . | . . . . . Authchips . | . . . . . Time . | . . . . . Total Part Build Rating . | . . . . . Parts Repaired . | . . . . . Time . | . . . . . Parts Recycled . | . . . . . Recycled Matter . | . . . . . Retrieved Matter . | . . . . . Retrieved Components 2 | . . . 2 . Parts Scanalyzed . | . . . . . Part Schematics Acquired . | . . . . . Parts Damaged . | . . . . . Bothacking | -11 -10 -10 -9 -8 ------------ Run | Jun Mat Min Mat Mat Used RIF Installer . | . . . . . Robots Hacked . | . . . . . Non-combat . | . . . . . Combat . | . . . . . Robot Hacks Applied . | . . . . . Relay Couplers Released . | . . . . . Fabnet Peak Effective % . | . . . . . Robots Rewired . | . . . . . Allies Hacked . | . . . . . Hacks Repelled . | . . . . . Allies | -11 -10 -10 -9 -8 -------- Run | Jun Mat Min Mat Mat Total Allies 2 | . . 2 . . Largest Group 2 | . . 2 . . Highest-Rated Group 39 | . . 39 . . Highest-Rated Ally 31 | . . 31 . . Total Orders . | . . . . . Ally Attacks 8 | . . 8 . . Total Damage 123 | . . 123 . . Kills 2 | . . 2 . . Allies Corrupted . | . . . . . Allies Melted . | . . . . . Intel | -11 -10 -10 -9 -8 ------- Run | Jun Mat Min Mat Mat Robot Analysis Total . | . . . . . Derelict Logs Recovered 1 | . . 1 . . Drone Launches . | . . . . . Drone Recoveries . | . . . . . Exploration | -11 -10 -10 -9 -8 ------------- Run | Jun Mat Min Mat Mat Turns Passed 1892 | 66 310 553 683 280 Spaces Moved 1204 | 49 211 367 445 132 Core 12 | 4 . 3 . 5 Treads . | . . . . . Legs 1192 | 45 211 364 445 127 Wheels . | . . . . . Hover . | . . . . . Flight . | . . . . . Fastest Speed 50 | 50 120 100 125 120 Average Speed 126 | 114 120 124 125 150 Slowest Speed 450 | 120 120 200 125 450 Overloaded Moves . | . . . . . Propulsion Burnouts . | . . . . . Robots Hopped . | . . . . . Cave-ins Triggered . | . . . . . Exploration Rate (%) 29 | 3 39 55 34 16 Regions Visited 4 Branch Regions 1 Pre-discovered Areas 1 | . . 1 . . Known Exits Taken . | . . . . . Unknown Exits Taken 4 | 1 1 1 1 . Scrap Searched 1 | . . 1 . . Spaces Dug . | . . . . . Terrain Destroyed 40 | . . . 39 1 Melee . | . . . . . Projectile 1 | . . . . 1 AOE 39 | . . . 39 . Terrain Rammed . | . . . . . Walls Destroyed . | . . . . . Machines Disabled . | . . . . . Actions | -11 -10 -10 -9 -8 --------- Run | Jun Mat Min Mat Mat Total 1436 | 56 246 435 511 188 Wait 48 | . 10 30 2 6 Move 1200 | 48 210 366 444 132 Hop . | . . . . . Pick Up 21 | 2 3 6 5 5 Fast Attach 23 | 6 8 7 2 . Attach 21 | . 1 3 6 11 Detach 6 | . 1 1 2 2 Swap 9 | . 1 3 . 5 Drop 13 | . . 5 2 6 Fire 80 | . 12 14 34 20 Melee 15 | . . . 14 1 Ram . | . . . . . Kick . | . . . . . Crush . | . . . . . Escape Stasis . | . . . . . Rewire . | . . . . . Trap . | . . . . . Miscellaneous . | . . . . . Route ------- -11/Junkyard -10/Materials -10/Mines -9/Materials -8/Materials History --------- Turn | Location | Event 2 | -11/Junkyard | Met Revision 17 6 | -11/Junkyard | Discovered new exit (range 16) 67 | -11/Junkyard | Entered Materials 212 | -10/Materials | Discovered new exit (range 12) 306 | -10/Materials | Build established: Mutant 377 | -10/Materials | Entered Mines 423 | -10/Mines | Met a Derelict who couldn't figure out how to use a Trap Extractor 534 | -10/Mines | Learned location of Storage (-9) 584 | -10/Mines | Learned 2 Materials zone layouts 787 | -10/Mines | Found a damaged Exp. Sensor Array with a note attached 790 | -10/Mines | Found Prototype Device 791 | -10/Mines | Identified Exp. Sensor Array 917 | -10/Mines | Discovered new exit (range 7) 923 | -10/Mines | Assembled infested the area 930 | -10/Mines | Entered Materials 930 | -9/Materials | Evolved 2 slots: Power x1, Utility x1 1076 | -9/Materials | Discovered new exit (range 3) 1120 | -9/Materials | Destroyed 13 combat bots 1613 | -9/Materials | Entered another Materials area 1613 | -8/Materials | Evolved 2 slots: Propulsion x2 1878 | -8/Materials | Core integrity fell below 50% 1893 | -8/Materials | Self-destructed Last Messages --------------- 01879_ Lgt. Deuterium Engine destroyed. 01879_ G-47 Trooper destroyed. 01881_ Overheating: Energy bleed (-47). 01881_ Assault Cannon destroyed. 01881_ Imp. Ion Engine destroyed. 01882_ G-47 Trooper destroyed. 01885_ Adv. Beam Cannon destroyed. 01885_ G-47 Trooper destroyed. 01885_ Door malfunctions. 01885_ Machine Analyzer destroyed. 01885_ System corrupted by crushing effect (+5). 01887_ R-06 Scavenger collects Corrupted Aluminum Leg. 01888_ Sml. Storage Unit destroyed. 01888_ System corrupted by crushing effect (+1). 01889_ Power failure, Lgt. Ion Engine shutdown. 01889_ Critical hit (Burn: +37). 01890_ Overheating: Energy bleed (-5). 01891_ R-06 Scavenger collects Imp. Heat Sink. 01891_ Lgt. Ion Engine destroyed. 01893_ EMP Blaster destroyed. Map ----- +----------------------------------------------------+ | ??????????????????????????#??????????????????????? | | ??????????????????????????????#?????????#????????? | | ???????????????????????#?????????#####???????????? | | ?????????????????????????????????# ##########??? | | ???????????????????????????????#?# # ! #??? | | ?????????????????????#???????????# # ##?? | | ?????????????????????????#???????# # """ #??? | | ?????????????????????????????????# # """"" #??? | | ?????????????????????????????????# + """"" #??? | | ?????????????????????????????????# # """"" #??? | | ?????????????????????????????????### # """ #??? | | ???????????????????????? ?? ???#???# # #??? | | ????????????????????????? ???????#?# # #?#? | | ??????????????????????? ??????????## ########+#??? | | ???????????????????? ???????????#??# #??????# ##?? | | ??????????????????????????? ???????# #?????## ##?? | | ?????????????????????? ????? ??????# #??????# #?#? | | ???????????????????????????????#???# #?##???# #??? | | ?????????????????????????????? ????# #?#????# #??? | | ?????????????????????######????????# ###???## #?#? | | ???????????? ????? # #????????# ######## #??? | | ?????????????? ???# #######??# ^ #??? | | ?????????????? ???# ## #??# ^^ ###? | | ??????????????? ??# % ## [ #?## """ #??? | | ???????????????""" ?#% =##[! #??# """ ! #??? | | ???????????? ??""" #%![@## / #??# """ #??? | | ???????????# """ "%###b%## !#### #??? | | ???????????# " ug=%# ! + ! #??? | | ???????????# g%g# =[## ####### #??? | | ???????????# r# ][ ## #?????# #??? | | ???????????# "T" u !% # ## ##????# #??? | | ????????????? """ ####### #######+#### | | ???????????# % T # # # | | ???????????# # # # | | ???????????# ###### %= # # "T" # | | ???????????# ??????# = """ # # # | | ???????????? ???????# / """ # ####### | | ????????????????????####### """ # ## | | ??????????????????????????# # ## | | ??????????????????????????# # ## """ | | ??????????????????????????# """ # ## """ | | ??????????????????????????# """ ###/### """ | | ????????????????T?????????# """ # | | ????????????????????"""??? / """ | | ????????????????????"""???# # """ | | ????????????????????"""???# ##+######## """ | | ??????????????????????????# # ## | | ??????????????????????????####+#### """"" ## | | ??????????????????????????????? # """"" ## | | ??????????????????????????????? # """"" #####?# | +----------------------------------------------------+ Best States ------------- Heat Dissipation 45 Energy Generation 23 Energy Capacity 305 Matter Stores 300 Matter Capacity 300 Sight Range 16 Robot Scan Range 20 Terrain Scan Range 16 Terrain Scan Density 10 Evasion (%) 55 Targeting Accuracy 5 Trap Extractor Capacity 6 Item Schematics ----------------- None Robot Schematics ------------------ None Fabricated ------------ Nothing Alien Tech Used ----------------- None Achievements -------------- Quick And Dirty Challenges ------------ None Game ------ Seed CatalystHoverRipper Manual? 0 Play Time 00:20:55 Cumulative 7.4 hours Start 2023.11.19 @ 11:17:32 End 2023.11.19 @ 12:05:53 Sessions 3 Manual Loads 0 Difficulty Rogue Special Mode None Game No. 21 Rogue 21 Adventurer 0 Explorer 0 Win Type - Total 0 Types 0/0/0/0/0/0/0/0/0 Lore% 6 Gallery% 14 Achievement% 12 Wizard Run 0 Options --------- ASCII 0 Keyboard 0 Movement Vi Keybinds 0 Fullscreen 1 Font 18/X11Bold Map View 76x50 Tactical HUD 1 Map Filters NONE Filters NONE Steam 1 RUN: 2fb012d7-7bd1-4a5e-ae8f-77ac80c5abfe